bitfinex-derivatives/quotes_ETHF0:USTF0_20250627
["timestamp","ask_amount","ask_price","bid_price","bid_amount"]
[1751067647432,1.20932384,2420.2,2420.1,36.36504672]
[1751067648234,1.20932384,2420.2,2420.1,32.24105]
[1751067648428,1.20932384,2420.2,2420.1,36.36504672]
[1751067650942,1.20932384,2420.2,2420.1,32.24105]
[1751067651142,1.20932384,2420.2,2420.1,36.36504672]
[1751067652541,1.20932384,2420.2,2420.1,32.24105]
[1751067652743,2.03533384,2420.2,2420.1,35.52999672]
[1751067653343,0.82605,2420.1,2420.0,3.2078]
[1751067653644,4.09997384,2420.1,2420.0,28.2168]
[1751067654642,4.81587384,2420.1,2420.0,28.2168]
[1751067655846,4.81587384,2420.1,2420.0,25.009]
[1751067658652,0.82612,2419.9,2419.8,3.00317876]
[1751067658844,2.03544384,2419.9,2419.8,28.01117876]
[1751067659039,2.03544384,2419.9,2419.8,32.13517548]
[1751067660743,2.03544384,2419.9,2419.8,3.00317876]
[1751067660950,2.03544384,2419.9,2419.8,32.13617548]
[1751067661549,2.03544384,2419.9,2419.8,7.12717548]
[1751067661742,2.03544384,2419.9,2419.8,32.96132548]
[1751067662549,1.20932384,2419.9,2419.8,32.96132548]
[1751067664252,0.8261,2420.0,2419.9,0.82612]
[1751067664451,2.03562973,2420.0,2419.9,29.13099672]
[1751067664651,2.03562973,2420.0,2419.9,25.007]
[1751067667156,2.03562973,2420.0,2419.9,25.83312]
[1751067667651,2.03562973,2420.0,2419.9,25.007]
[1751067668757,2.03562973,2420.0,2419.9,25.83312]
[1751067668957,1.20952973,2420.0,2419.9,25.83312]
[1751067669255,2.03560973,2420.0,2419.9,25.83312]
[1751067669446,2.03560973,2420.0,2419.9,25.007]
[1751067669647,2.03560973,2420.0,2419.8,3.82930876]
[1751067669849,0.82608,2420.0,2419.9,29.13099672]
[1751067670047,1.21002774,2420.0,2419.9,29.95711672]
[1751067670252,2.03610774,2420.0,2419.9,25.7132]
[1751067679358,1.21002774,2420.0,2419.9,26.53932]
[1751067679555,1.49897,2420.1,2419.9,26.53932]
[1751067679556,4.9993,2420.2,2420.1,0.82605]
[1751067679747,1.21040603,2420.2,2420.1,25.83005]
[1751067679954,1.21040603,2420.2,2420.1,29.95404672]
[1751067680151,1.21040603,2420.2,2420.1,31.41894672]
[1751067683959,1.21014458,2420.2,2420.1,31.41894672]
[1751067687564,1.21014458,2420.2,2420.1,27.29495]
[1751067687762,1.21014458,2420.2,2420.1,31.41894672]
[1751067690567,1.21014458,2420.2,2420.1,33.52112836]
[1751067692363,1.21014458,2420.2,2420.1,29.39713164]
[1751067700376,1.21014458,2420.2,2420.1,33.52112836]
[1751067701474,1.21014458,2420.2,2420.1,29.39713164]
[1751067701676,1.21014458,2420.2,2420.1,33.52112836]
[1751067711379,1.21014458,2420.2,2420.1,29.39713164]
[1751067712481,1.21014458,2420.2,2420.1,33.52112836]
[1751067719184,1.21014458,2420.2,2420.1,34.39713164]
[1751067719389,3.95885504,2420.8,2420.6,2.92806164]
[1751067719685,3.95885504,2420.8,2420.7,27.08818164]
[1751067719888,5.41285504,2420.8,2420.7,27.08818164]
[1751067721088,5.41284504,2420.8,2420.7,27.08818164]
[1751067721985,5.41284504,2420.8,2420.7,24.986]
[1751067723587,0.82584,2420.7,2420.5,6.13589164]
[1751067723780,2.27344,2420.7,2420.6,24.985]
[1751067725892,0.82588,2420.6,2420.5,3.2078]
[1751067726191,0.82607,2420.1,2419.9,8.48818164]
[1751067726391,1.3395,2420.0,2419.9,8.48818164]
[1751067726589,2.045,2420.0,2419.9,33.47218164]
[1751067726789,2.045,2420.0,2419.9,34.29830164]
[1751067728591,2.045,2420.0,2419.9,35.20012725]
[1751067728991,0.7055,2420.0,2419.9,35.20012725]
[1751067732590,0.7055,2420.0,2419.9,35.20112725]
[1751067733797,2.1298,2420.0,2419.9,35.20112725]
[1751067736201,2.1298,2420.0,2419.9,34.37500725]
[1751067736404,2.1298,2420.0,2419.9,35.20112725]
[1751067738398,2.95588,2420.0,2419.8,5.08605953]
[1751067738597,2.95588,2420.0,2419.9,27.98900725]
[1751067738805,4.15859058,2420.0,2419.9,27.98900725]
[1751067739298,3.33251058,2420.0,2419.9,28.81512725]
[1751067739499,0.7055,2420.0,2419.9,28.81512725]
[1751067740400,8.2031,2420.2,2420.1,0.82605]
[1751067740600,9.40575948,2420.2,2420.1,28.81505725]
[1751067740911,10.23176948,2420.2,2420.1,28.81505725]
[1751067741504,10.23176948,2420.2,2420.1,27.98900725]
[1751067744511,5.23646948,2420.2,2420.1,27.98900725]
[1751067745709,4.41045948,2420.2,2420.1,28.81505725]
[1751067746014,5.23646948,2420.2,2420.1,28.81505725]
[1751067746412,1.20265948,2420.2,2420.1,28.81505725]
[1751067751115,1.20265948,2420.2,2420.1,29.52905725]
[1751067755123,1.20265948,2420.2,2420.1,30.97995725]
[1751067755922,1.20265948,2420.2,2420.1,29.52905725]
[1751067762430,2.02866948,2420.2,2420.1,29.52905725]
[1751067765533,2.02866948,2420.2,2420.1,4.54405725]
[1751067765726,2.02866948,2420.2,2420.1,29.52405725]
[1751067766032,1.20265948,2420.2,2420.1,29.52405725]
[1751067766635,1.20265948,2420.2,2420.1,28.62249725]
[1751067768639,1.20265948,2420.2,2420.1,29.5234926]
[1751067790649,1.20265948,2420.2,2420.1,28.62242373]
[1751067806372,1.20265948,2420.2,2420.1,3.64242373]
[1751067806566,2.02868948,2420.2,2419.9,3.2078]
[1751067806764,0.82601,2420.2,2420.1,24.97]
[1751067806966,7.02527898,2420.2,2420.1,27.07237373]
[1751067807166,6.19926898,2420.2,2420.1,27.07237373]
[1751067807367,6.19926898,2420.2,2420.1,27.89842373]
[1751067808874,7.02527898,2420.2,2420.1,27.07237373]
[1751067810671,8.47467898,2420.2,2420.1,27.07237373]
[1751067815677,8.47447708,2420.2,2420.1,27.07237373]
[1751067818781,8.47460255,2420.2,2420.1,27.07237373]
[1751067819076,9.15420255,2420.2,2420.1,27.07237373]
[1751067819874,9.15420255,2420.2,2420.1,2.10237373]
[1751067820179,7.70480255,2420.2,2420.1,2.10237373]
[1751067820376,7.70480255,2420.2,2420.1,27.06937373]
[1751067820577,6.19919255,2420.2,2420.1,27.89542373]
[1751067820876,1.20389255,2420.2,2420.1,27.89542373]
[1751067829492,1.20389255,2420.2,2420.1,29.32482373]
[1751067839199,3.2078,2420.3,2420.2,0.82601]
[1751067842500,4.03378,2420.3,2420.2,24.961]
[1751067843099,4.03378,2420.3,2420.2,25.78701]
[1751067844800,3.2078,2420.3,2420.2,25.78701]
[1751067845003,4.03378,2420.3,2420.2,25.78701]
[1751067845298,4.5688,2420.3,2420.2,25.78701]
[1751067846903,1.361,2420.3,2420.2,25.78701]
[1751067848302,2.18698,2420.3,2420.2,24.961]
[1751067848899,1.361,2420.3,2420.2,25.78701]
[1751067851605,4.03376,2420.4,2420.3,0.82598]
[1751067851800,4.03376,2420.4,2420.3,2.92835373]
[1751067852003,3.2078,2420.4,2420.3,2.92835373]
[1751067856109,5.6749,2420.5,2420.4,0.82595]
[1751067859614,6.50081,2420.5,2420.3,2.92833373]
[1751067860115,1.20424896,2420.4,2420.3,2.92833373]
[1751067860415,2.03019896,2420.4,2420.3,2.10237373]
[1751067861008,2.03019896,2420.4,2420.3,2.92835373]
[1751067861915,2.03019896,2420.4,2420.3,2.10237373]
[1751067862711,0.82598,2420.3,2420.2,2.10237373]
[1751067862912,6.68642896,2420.3,2420.2,27.05837373]
[1751067865110,6.68642896,2420.3,2420.2,27.05737373]
[1751067865719,6.68642896,2420.3,2420.2,2.10237373]
[1751067865920,6.68642896,2420.3,2420.2,27.05737373]
[1751067866513,6.68642896,2420.3,2420.2,2.10237373]
[1751067866708,6.68642896,2420.3,2420.2,27.05737373]
[1751067868223,6.68642896,2420.3,2420.2,27.88338373]
[1751067869220,6.68642896,2420.3,2420.2,25.78101]
[1751067869423,6.68642896,2420.3,2420.2,27.05737373]
[1751067870121,6.68642896,2420.3,2420.2,2.10237373]
[1751067870322,6.68642896,2420.3,2420.2,27.05637373]
[1751067871221,5.23802896,2420.3,2420.2,2.10237373]
[1751067871422,5.23802896,2420.3,2420.2,27.05637373]
[1751067872526,5.23802896,2420.3,2420.2,27.05537373]
[1751067872822,5.23802896,2420.3,2420.2,27.88138373]
[1751067873527,5.23802896,2420.3,2420.2,27.05537373]
[1751067874024,5.23802896,2420.3,2420.2,2.10237373]
[1751067874219,4.41204896,2420.3,2420.2,27.88138373]
[1751067874426,5.23802896,2420.3,2420.2,27.88138373]
[1751067874925,5.23802896,2420.3,2420.2,2.10237373]
[1751067875425,5.23802896,2420.3,2420.2,27.05537373]
[1751067876627,5.23802896,2420.3,2420.2,2.10237373]
[1751067876827,5.23802896,2420.3,2420.2,27.05537373]
[1751067877423,5.23802896,2420.3,2420.2,27.05437373]
[1751067877725,5.23802896,2420.3,2420.2,2.10237373]
[1751067878126,5.23802896,2420.3,2420.2,27.05437373]
[1751067883226,5.23802896,2420.3,2420.2,2.10237373]
[1751067883433,5.23802896,2420.3,2420.2,27.05337373]
[1751067883831,5.23802896,2420.3,2420.2,2.10237373]
[1751067884129,5.23802896,2420.3,2420.2,27.05337373]
[1751067884827,5.23802896,2420.3,2420.2,2.10237373]
[1751067890039,5.23802896,2420.3,2420.2,2.92838373]
[1751067890732,5.23802896,2420.3,2420.2,27.05137373]
[1751067892134,2.03022896,2420.3,2420.2,27.05137373]
[1751067892332,5.23802896,2420.3,2420.2,27.05137373]
[1751067893330,5.23802896,2420.3,2420.2,2.10237373]
[1751067907745,5.23802896,2420.3,2420.2,2.92838373]
[1751067908136,5.23802896,2420.3,2420.2,5.06518373]
[1751067908744,4.41204896,2420.3,2420.2,5.06518373]
[1751067911643,1.20424896,2420.3,2420.2,5.06518373]
[1751067916347,1.20308833,2420.3,2420.2,5.06518373]
[1751067918253,1.20308833,2420.3,2420.2,10.06518373]
[1751067918751,2.1385,2420.8,2420.5,0.82591]
[1751067918943,2.1385,2420.8,2420.7,2.92821373]
[1751067919249,2.1385,2420.8,2420.7,0.82584]
[1751067920351,2.96431,2420.8,2420.6,37.09782373]
[1751067920547,2.1385,2420.8,2420.7,0.82584]
[1751067920754,2.1385,2420.8,2420.7,3.52775108]
[1751067921650,2.1385,2420.8,2420.7,28.46675108]
[1751067921953,4.03359,2420.9,2420.7,28.46675108]
[1751067922456,4.03359,2420.9,2420.8,0.82581]
[1751067925249,0.82581,2420.8,2420.7,24.939]
[1751067925557,0.7357,2420.8,2420.7,24.939]
[1751067925950,0.7357,2420.8,2420.7,25.76484]
[1751067926351,0.7357,2420.8,2420.7,0.82584]
[1751067926556,0.7357,2420.8,2420.7,25.76184]
[1751067928156,0.82576,2421.0,2420.8,0.82581]
[1751067928460,0.82576,2421.0,2420.9,2.70191108]
[1751067929855,0.82576,2421.0,2420.9,3.52769108]
[1751067930059,4.9953,2421.1,2421.0,0.82574]
[1751067930260,0.82571,2421.1,2421.0,25.75974]
[1751067930557,4.70969,2421.2,2421.0,25.75974]
[1751067930850,4.70969,2421.2,2421.1,2.70191108]
[1751067931052,5.90354601,2421.2,2421.1,2.70191108]
[1751067931255,5.07785601,2421.2,2421.1,3.52762108]
[1751067931451,5.07785601,2421.2,2421.1,4.23322108]
[1751067931452,3.884,2421.2,2421.1,4.23322108]
[1751067933762,4.70967,2421.2,2421.1,3.40751108]
[1751067935051,3.884,2421.2,2420.8,0.6895]
[1751067935355,0.82587,2420.7,2420.5,3.52781108]
[1751067935551,1.50548,2420.6,2420.5,2.70191108]
[1751067935849,1.50548,2420.6,2420.5,27.63291108]
[1751067936450,1.50548,2420.6,2420.5,2.70191108]
[1751067936756,1.50548,2420.6,2420.5,27.63291108]
[1751067937056,1.50548,2420.6,2420.4,10.38972]
[1751067937057,0.82591,2420.5,2420.4,3.2078]
[1751067937246,2.15651,2420.5,2420.4,28.1388]
[1751067937548,2.15651,2420.5,2420.4,3.2078]
[1751067937750,2.15651,2420.5,2420.4,28.1388]
[1751067937950,1.3306,2420.5,2420.4,28.96475]
[1751067938146,2.15651,2420.5,2420.4,28.1388]
[1751067938544,2.15651,2420.5,2420.4,28.96475]
[1751067938545,1.3306,2420.5,2420.4,28.96475]
[1751067940356,2.15651,2420.5,2420.4,28.1388]
[1751067940758,1.3506,2420.6,2420.5,0.82591]
[1751067940956,1.3506,2420.6,2420.5,3.52782108]
[1751067941356,0.6796,2420.6,2420.5,3.52782108]
[1751067943652,0.6796,2420.6,2420.4,3.2078]
[1751067943858,1.50549,2420.6,2420.5,24.931]
[1751067944555,2.94609,2420.6,2420.5,24.931]
[1751067944862,4.140797,2420.6,2420.5,27.63291108]
[1751067947355,2.700197,2420.6,2420.5,27.63291108]
[1751067950155,1.50549,2420.6,2420.5,27.63291108]
[1751067950362,1.50549,2420.6,2420.5,28.45882108]
[1751067950662,0.82589,2420.6,2420.5,28.45882108]
[1751067950860,0.82589,2420.6,2420.5,29.12682108]
[1751067951063,5.82116,2420.7,2420.5,29.12682108]
[1751067951456,4.9953,2420.7,2420.6,0.82588]
[1751067951958,1.55474,2420.8,2420.6,0.82588]
[1751067952162,1.55474,2420.8,2420.7,27.63291108]
[1751067952760,4.03358,2420.9,2420.7,28.45874108]
[1751067952957,4.03358,2420.9,2420.8,0.6987]
[1751067953156,4.03358,2420.9,2420.8,1.3667]
[1751067954463,0.82578,2420.9,2420.8,1.3667]
[1751067956762,0.82578,2420.9,2420.8,2.19251]
[1751067957061,0.82577,2421.0,2420.8,2.19251]
[1751067957265,6.54991,2421.1,2421.0,2.70191108]
[1751067957563,6.54991,2421.1,2421.0,27.63191108]
[1751067960463,6.54991,2421.1,2421.0,24.93]
[1751067960663,7.90681,2421.1,2421.0,24.93]
[1751067964268,11.11461,2421.1,2421.0,24.93]
[1751067964967,7.90681,2421.1,2421.0,24.93]
[1751067965171,11.11461,2421.1,2421.0,24.93]
[1751067970778,9.75771,2421.1,2421.0,24.93]
[1751067975382,6.54991,2421.1,2421.0,24.93]
[1751067980987,6.54991,2421.1,2421.0,27.63191108]
[1751067983594,5.82101,2421.1,2421.0,27.63191108]
[1751067984494,4.9953,2421.1,2421.0,28.45765108]
[1751067984790,3.2078,2421.2,2421.0,28.45765108]
[1751067984791,3.2078,2421.2,2421.1,0.82571]
[1751067984986,3.2078,2421.2,2421.1,2.27101]
[1751067985180,3.2078,2421.2,2421.1,2.96731]
[1751067988793,0.82561,2421.4,2421.2,0.82565]
[1751067988996,4.03341,2421.4,2421.3,4.81041108]
[1751067992199,4.03341,2421.4,2421.3,5.63605108]
[1751067992597,4.03341,2421.4,2421.3,0.6929]
[1751067992792,4.03341,2421.4,2421.3,3.39481108]
[1751067994500,4.03341,2421.4,2421.3,4.22045108]
[1751067994904,4.0334,2421.4,2421.3,4.22045108]
[1751067995699,3.2078,2421.4,2421.3,4.22045108]
[1751067996103,4.9953,2421.5,2421.4,0.8256]
[1751067996294,4.9953,2421.5,2421.3,3.39481108]
[1751067996295,4.74762,2421.7,2421.5,0.82556]
[1751067996495,4.74762,2421.7,2421.6,3.38211108]
[1751067996796,9.74292,2421.7,2421.6,3.38211108]
[1751067997492,9.74292,2421.7,2421.6,2.70191108]
[1751068004599,9.74292,2421.7,2421.6,3.52745108]
[1751068005599,9.74292,2421.7,2421.6,2.70191108]
[1751068005800,9.74292,2421.7,2421.6,3.52745108]
[1751068006203,9.74292,2421.7,2421.6,2.70191108]
[1751068006801,8.2031,2421.7,2421.6,3.52745108]
[1751068006989,4.9953,2421.7,2421.6,3.52745108]
[1751068007195,0.7167,2421.9,2421.8,0.82547]
[1751068007502,4.9953,2422.0,2421.9,0.82543]
[1751068007996,4.9953,2422.0,2421.8,2.70191108]
[1751068007997,1.19506884,2421.9,2421.8,3.52735108]
[1751068008198,0.82543,2421.9,2421.8,2.70191108]
[1751068008994,5.82071,2422.0,2421.8,3.52735108]
[1751068009300,5.82071,2422.0,2421.8,3.52736108]
[1751068009501,0.82543,2421.9,2421.8,2.70191108]
[1751068020199,0.82543,2421.9,2421.8,27.61391108]
[1751068022914,0.82542,2422.0,2421.8,28.43938108]
[1751068023413,0.82543,2421.9,2421.8,28.43938108]
[1751068023912,10.254,2422.1,2421.9,0.82543]
[1751068024111,10.254,2422.1,2422.0,2.70191108]
[1751068024112,9.7452,2422.1,2422.0,2.70191108]
[1751068024313,10.93925567,2422.1,2422.0,2.70191108]
[1751068033121,5.94395567,2422.1,2422.0,3.38111108]
[1751068036523,5.22725567,2422.1,2422.0,3.38111108]
[1751068038718,5.22725567,2422.1,2422.0,2.56855385]
[1751068039721,4.40185567,2422.1,2422.0,5.2833077]
[1751068039925,1.19405567,2422.1,2422.0,5.2833077]
[1751068040126,1.19405567,2422.1,2422.0,6.6639077]
[1751068040625,1.19405567,2422.1,2422.0,5.58340544]
[1751068040928,1.19405567,2422.1,2422.0,13.28161088]
[1751068041323,4.9953,2422.3,2422.2,0.82533]
[1751068041523,1.19764831,2422.3,2422.2,37.98433544]
[1751068041724,1.19764831,2422.3,2422.2,42.98433544]
[1751068041924,1.19764831,2422.3,2422.2,44.37493544]
[1751068042427,5.82052,2422.6,2422.4,0.82526]
[1751068042622,5.82052,2422.6,2422.5,24.907]
[1751068042827,7.01749674,2422.6,2422.5,24.907]
[1751068043628,7.01749674,2422.6,2422.5,27.60520544]
[1751068044334,5.82052,2422.6,2422.5,27.60520544]
[1751068045436,5.82052,2422.6,2422.5,28.43043544]
[1751068045437,4.9953,2422.6,2422.5,28.43043544]
[1751068045833,0.7056,2422.7,2422.5,28.43043544]
[1751068046033,4.03295,2422.8,2422.6,0.669]
[1751068046330,1.19485943,2422.7,2422.6,1.3524]
[1751068046537,2.02001943,2422.7,2422.6,1.3524]
[1751068047344,4.03295,2422.8,2422.6,2.1776]
[1751068047644,4.03295,2422.8,2422.7,2.69820544]
[1751068047845,5.22718206,2422.8,2422.7,2.69820544]
[1751068048647,4.40203206,2422.8,2422.7,3.52336544]
[1751068048846,3.2078,2422.8,2422.7,3.52336544]
[1751068049248,6.53661,2422.9,2422.8,0.82513]
[1751068049449,7.72973221,2422.9,2422.7,3.52334544]
[1751068049648,6.53661,2422.9,2422.7,3.52334544]
[1751068050648,0.82513,2422.8,2422.7,2.69820544]
[1751068052249,0.82513,2422.8,2422.7,3.52336544]
[1751068052747,0.82513,2422.8,2422.7,2.69820544]
[1751068055753,0.82513,2422.8,2422.7,3.52336544]
[1751068055957,0.7162,2422.9,2422.7,3.52336544]
[1751068056148,1.54129,2422.9,2422.8,24.899]
[1751068060161,0.82513,2422.8,2422.7,2.69820544]
[1751068060361,0.7162,2422.9,2422.6,3.2078]
[1751068060661,0.82516,2422.7,2422.6,3.2078]
[1751068060861,0.82516,2422.7,2422.6,28.1058]
[1751068061157,0.82526,2422.4,2422.3,3.2078]
[1751068061563,0.82526,2422.4,2422.3,28.1058]
[1751068061760,0.82526,2422.4,2422.3,30.80400544]
[1751068062765,2.19415,2422.5,2422.3,30.80400544]
[1751068062963,1.4122,2422.6,2422.3,30.80400544]
[1751068063156,1.5441,2422.6,2422.5,2.69820544]
[1751068064961,0.7189,2422.6,2422.5,3.52343544]
[1751068065161,1.5441,2422.6,2422.5,2.69820544]
[1751068065360,0.7189,2422.6,2422.5,3.52343544]
[1751068067162,1.5441,2422.6,2422.5,3.52343544]
[1751068067365,1.5441,2422.6,2422.5,2.69820544]
[1751068067667,0.7189,2422.6,2422.5,3.52343544]
[1751068068267,1.91395701,2422.6,2422.5,3.52343544]
[1751068068869,2.73915701,2422.6,2422.5,3.52343544]
[1751068069067,1.91395701,2422.6,2422.5,3.52343544]
[1751068069767,1.19505701,2422.6,2422.5,3.52343544]
[1751068071470,2.02025701,2422.6,2422.5,3.52343544]
[1751068072666,1.19505701,2422.6,2422.5,3.52343544]
[1751068075376,1.19505701,2422.6,2422.5,4.87683544]
[1751068075872,2.02025701,2422.6,2422.5,4.87683544]
[1751068076079,1.19505701,2422.6,2422.5,4.87683544]
[1751068076376,2.02025701,2422.6,2422.5,4.87683544]
[1751068077469,1.19505701,2422.6,2422.5,4.87683544]
[1751068091082,0.6811,2422.8,2422.7,0.82516]
[1751068091280,1.87064687,2422.8,2422.7,28.41936544]
[1751068092188,1.87064687,2422.8,2422.7,29.14826544]
[1751068098590,1.87064687,2422.8,2422.7,30.2261337]
[1751068099391,0.6811,2422.8,2422.7,30.2261337]
[1751068102199,10.40525,2423.1,2422.7,29.4009737]
[1751068102401,9.02815,2423.1,2423.0,2.71309685]
[1751068102698,10.21656177,2423.1,2423.0,27.60709685]
[1751068103499,10.21656177,2423.1,2423.0,26.78203685]
[1751068104598,10.21656177,2423.1,2423.0,27.60709685]
[1751068104796,10.21654177,2423.1,2423.0,27.60709685]
[1751068104995,9.39151177,2423.1,2423.0,27.60709685]
[1751068105500,10.21654177,2423.1,2423.0,26.78203685]
[1751068105693,6.62444177,2423.1,2423.0,26.78203685]
[1751068106496,6.62444177,2423.1,2423.0,27.60709685]
[1751068107098,6.62444177,2423.1,2423.0,26.78203685]
[1751068107702,6.62444177,2423.1,2423.0,27.60709685]
[1751068107904,5.79941177,2423.1,2423.0,27.60709685]
[1751068108204,6.62444177,2423.1,2423.0,27.60709685]
[1751068108405,6.62444177,2423.1,2423.0,26.78203685]
[1751068108802,3.41664177,2423.1,2423.0,26.78203685]
[1751068109806,3.41664177,2423.1,2423.0,1.88803685]
[1751068109998,3.41664177,2423.1,2423.0,26.78003685]
[1751068111806,3.41664177,2423.1,2423.0,1.88803685]
[1751068112006,3.41664177,2423.1,2423.0,26.78003685]
[1751068114210,3.41664177,2423.1,2422.9,0.82508]
[1751068114211,0.82506,2423.0,2422.9,1.88803685]
[1751068114510,1.48996,2423.0,2422.9,26.78003685]
[1751068115313,0.6649,2423.0,2422.9,27.60512685]
[1751068115905,1.48996,2423.0,2422.9,27.60512685]
[1751068116305,1.48996,2423.0,2422.9,26.78003685]
[1751068119517,0.6649,2423.0,2422.9,27.60512685]
[1751068120116,0.82501,2423.2,2423.0,0.82505]
[1751068120316,1.52081,2423.2,2423.1,1.88803685]
[1751068120617,2.71046624,2423.2,2423.1,1.88803685]
[1751068126615,1.88545624,2423.2,2423.1,2.71306685]
[1751068126821,2.71044624,2423.2,2423.1,2.71306685]
[1751068128422,1.88545624,2423.2,2423.1,2.71306685]
[1751068131425,2.71044624,2423.2,2423.1,2.71306685]
[1751068132223,1.88545624,2423.2,2423.1,2.71306685]
[1751068132823,2.71044624,2423.2,2423.1,1.88803685]
[1751068133223,2.71044624,2423.2,2423.1,2.71306685]
[1751068133525,1.88545624,2423.2,2423.1,2.71306685]
[1751068135524,2.71044624,2423.2,2423.1,2.71306685]
[1751068136829,1.88545624,2423.2,2423.1,2.71306685]
[1751068137325,2.71044624,2423.2,2423.1,2.71306685]
[1751068137526,1.88545624,2423.2,2423.1,2.71306685]
[1751068138119,1.18965624,2423.2,2423.1,2.71306685]
[1751068140330,2.01464624,2423.2,2423.0,0.82504]
[1751068140521,0.82499,2423.2,2423.1,1.88803685]
[1751068140826,3.34828251,2423.2,2423.1,1.88803685]
[1751068141227,3.34828251,2423.2,2423.1,26.77703685]
[1751068144230,3.34828251,2423.2,2423.1,1.88803685]
[1751068144433,2.01568251,2423.2,2423.1,26.77703685]
[1751068145129,2.01568251,2423.2,2423.1,27.60206685]
[1751068145726,2.01568251,2423.2,2423.1,27.60106685]
[1751068146031,2.01568251,2423.2,2423.1,26.77603685]
[1751068147334,2.01568251,2423.2,2423.1,1.88803685]
[1751068147538,3.37148251,2423.2,2423.1,24.888]
[1751068149630,0.82503,2423.1,2423.0,1.88803685]
[1751068149834,2.01572251,2423.1,2423.0,1.88803685]
[1751068150334,2.01572251,2423.1,2423.0,26.77603685]
[1751068151223,2.01572251,2423.1,2423.0,27.60109685]
[1751068151739,2.01572251,2423.1,2423.0,2.71309685]
[1751068152034,2.01572251,2423.1,2423.0,27.60109685]
[1751068152242,2.01572251,2423.1,2423.0,2.71309685]
[1751068152536,2.01572251,2423.1,2423.0,27.60109685]
[1751068153440,2.01572251,2423.1,2423.0,26.77603685]
[1751068153935,2.01572251,2423.1,2423.0,27.60109685]
[1751068154138,1.19069251,2423.1,2423.0,27.60109685]
[1751068155340,2.01572251,2423.1,2423.0,27.60109685]
[1751068155940,1.19069251,2423.1,2423.0,27.60109685]
[1751068157144,2.01572251,2423.1,2423.0,27.60109685]
[1751068157840,2.01572251,2423.1,2423.0,26.77603685]
[1751068162450,2.01572251,2423.1,2423.0,27.60109685]
[1751068162639,1.19069251,2423.1,2423.0,27.60109685]
[1751068162943,2.01572251,2423.1,2423.0,27.60109685]
[1751068163144,2.01572251,2423.1,2423.0,26.77603685]
[1751068167752,1.19069251,2423.1,2423.0,27.60109685]
[1751068168050,1.19069251,2423.1,2423.0,2.71309685]
[1751068168347,2.01572251,2423.1,2423.0,2.71309685]
[1751068168548,2.01572251,2423.1,2423.0,27.59909685]
[1751068168748,2.01572251,2423.1,2423.0,2.71309685]
[1751068168948,2.01572251,2423.1,2423.0,26.77403685]
[1751068169343,9.39849251,2423.1,2422.5,3.2078]
[1751068169556,0.82518,2422.7,2422.5,3.2078]
[1751068169749,1.88379168,2422.6,2422.5,3.2078]
[1751068170053,1.88379168,2422.6,2422.5,28.91903]
[1751068170249,0.6914,2422.6,2422.5,28.91903]
[1751068170449,1.88332543,2422.6,2422.5,28.91903]
[1751068170854,1.88332543,2422.6,2422.5,30.80706685]
[1751068172546,2.70852543,2422.6,2422.5,28.0938]
[1751068172747,2.70852543,2422.6,2422.5,29.98183685]
[1751068173252,1.88332543,2422.6,2422.5,30.80706685]
[1751068173754,1.88332543,2422.6,2422.5,5.92106685]
[1751068174249,1.88332543,2422.6,2422.5,30.80806685]
[1751068174955,1.88332543,2422.6,2422.5,28.92003]
[1751068175155,1.88332543,2422.6,2422.5,30.80806685]
[1751068175355,1.88332543,2422.6,2422.5,29.98283685]
[1751068175751,2.70852543,2422.6,2422.5,5.09583685]
[1751068175957,2.70852543,2422.6,2422.5,29.98383685]
[1751068176159,2.70852543,2422.6,2422.5,5.09583685]
[1751068176360,2.70852543,2422.6,2422.5,29.98283685]
[1751068176550,2.70852543,2422.6,2422.5,5.09583685]
[1751068176949,2.70852543,2422.6,2422.5,29.98283685]
[1751068177351,2.70852543,2422.6,2422.5,5.09583685]
[1751068177556,2.70852543,2422.6,2422.5,29.98283685]
[1751068178159,1.5166,2422.6,2422.5,29.98283685]
[1751068179356,1.5166,2422.6,2422.5,5.09583685]
[1751068179557,1.5166,2422.6,2422.5,29.98383685]
[1751068179859,1.5166,2422.6,2422.5,5.09583685]
[1751068180060,0.6914,2422.6,2422.5,5.09583685]
[1751068180257,0.6914,2422.6,2422.5,29.98383685]
[1751068180655,0.6914,2422.6,2422.5,30.80906685]
[1751068181350,0.6914,2422.6,2422.5,5.92106685]
[1751068181557,0.6914,2422.6,2422.5,30.80906685]
[1751068182060,0.6914,2422.6,2422.5,27.60126685]
[1751068182464,4.03294,2422.8,2422.6,0.82518]
[1751068182663,4.74394,2422.8,2422.7,1.88803685]
[1751068182863,5.93343695,2422.8,2422.7,1.88803685]
[1751068184564,4.39729695,2422.8,2422.7,4.6012337]
[1751068184766,1.18949695,2422.8,2422.7,5.3362337]
[1751068184963,6.337,2423.0,2422.9,0.82509]
[1751068185159,7.52668084,2423.0,2422.9,2.71312685]
[1751068185467,1.18968084,2423.0,2422.9,2.71312685]
[1751068186567,1.18968084,2423.0,2422.9,3.52180407]
[1751068186765,2.01474084,2423.0,2422.9,2.69671407]
[1751068186967,1.18968084,2423.0,2422.9,3.52180407]
[1751068187266,1.18968084,2423.0,2422.9,28.40880407]
[1751068189868,1.18968084,2423.0,2422.9,29.11970407]
[1751068190768,1.18968084,2423.0,2422.9,30.52540407]
[1751068196279,0.82499,2423.2,2423.0,0.82503]
[1751068196482,0.82499,2423.2,2423.1,4.18444407]
[1751068196670,2.01476292,2423.2,2423.1,4.18444407]
[1751068196873,2.01476292,2423.2,2423.1,0.6627]
[1751068197070,2.01476292,2423.2,2423.1,3.35941407]
[1751068197276,2.01476292,2423.2,2423.1,4.18444407]
[1751068197480,2.01476292,2423.2,2423.1,3.35941407]
[1751068198679,0.82504,2423.1,2422.9,3.52178407]
[1751068198982,0.82501,2423.2,2423.0,25.70906]
[1751068199183,0.82501,2423.2,2423.1,2.69671407]
[1751068199376,2.0123443,2423.2,2423.1,2.69671407]
[1751068199776,2.0123443,2423.2,2423.1,27.58071407]
[1751068201389,1.1873343,2423.2,2423.1,28.40574407]
[1751068201581,4.03273,2423.4,2423.2,0.82497]
[1751068201781,4.03273,2423.4,2423.3,3.40191407]
[1751068201985,5.21922928,2423.4,2423.3,3.40191407]
[1751068204784,4.39429928,2423.4,2423.2,0.6669]
[1751068204994,0.82499,2423.2,2423.1,27.58071407]
[1751068205586,0.82499,2423.2,2423.1,28.40574407]
[1751068207284,0.82498,2423.3,2423.1,28.40574407]
[1751068207485,0.82498,2423.3,2423.2,0.82499]
[1751068207789,2.01133427,2423.3,2423.1,3.52172407]